[Event "African Games-chT 2019"]
[Site "Casablanca"]
[Date "2019.08.24"]
[Round "4.33"]
[White "Mesfin, Leykun"]
[Black "Kourakoumba, Florent"]
[Result "1-0"]
[ECO "C00"]
[WhiteElo "2151"]
[BlackElo "1677"]
[Annotator "NA"]
[PlyCount "85"]
[EventDate "2019.08.24"]
[EventType "team-tourn"]
[EventCountry "MAR"]
[SourceTitle "playchess.com"]
[Source "ChessBase"]
[SourceQuality "1"]
[WhiteTeam "Ethiopia"]
[BlackTeam "CAF"]
[WhiteTeamCountry "ETH"]
[TimeControl "900+10"]

1. e4 {[%emt 0:00:00]} e6 {[%emt 0:00:00]} 2. d4 {[%emt 0:00:17]} d6 {[%emt 0:00:01]} 3. Bd3 {[%emt 0:00:18]} Nd7 {[%emt 0:00:08]} 4. f4 {[%emt 0:00:12]} Be7 {[%emt 0:00:14]} 5. Nf3 {[%emt 0:00:02]} Ngf6 {[%emt 0:00:06]} 6. O-O {[%emt 0:00:07]} O-O {[%emt 0:00:02]} 7. c3 {[%emt 0:00:47]} a6 {[%emt 0:00:04]} 8. Nbd2 {[%emt 0:00:28]} Ng4 {[%emt 0:00:07]} 9. Qe2 {[%emt 0:00:12]} f6 {[%emt 0:00:13]} 10. h3 {[%emt 0:00:14]} Nh6 {[%emt 0:00:03]} 11. Nc4 {[%emt 0:00:26]} b5 {[%emt 0:00:04]} 12. Ne3 {[%emt 0:00:05]} e5 {[%emt 0:00:08]} 13. Nd5 {[%emt 0:00:21]} c6 {[%emt 0:00:02]} 14. Nxe7+ {[%emt 0:00:08]} Qxe7 {[%emt 0:00:05]} 15. fxe5 {[%emt 0:00:10]} Nf7 {[%emt 0:00:08]} 16. exd6 {[%emt 0:00:20]} Nxd6 {[%emt 0:00:16]} 17. Bf4 {[%emt 0:00:17]} Nb6 {[%emt 0:00:22]} 18. e5 {[%emt 0:02:05]} Ndc4 {[%emt 0:00:04]} 19. b3 {[%emt 0:01:01]} Na5 {[%emt 0:00:10]} 20. Qe4 {[%emt 0:01:13]} g6 {[%emt 0:00:03]} 21. exf6 {[%emt 0:00:42]} Qxe4 {[%emt 0:00:08]} 22. Bxe4 {[%emt 0:00:02]} Rxf6 {[%emt 0:00:02]} 23. Bc7 {[%emt 0:00:02]} Re6 {[%emt 0:00:44]} 24. Ne5 {[%emt 0:00:39]} Nd7 {[%emt 0:00:29]} 25. Bxa5 {[%emt 0:00:07]} Nxe5 {[%emt 0:00:02]} 26. dxe5 {[%emt 0:00:02]} Bb7 {[%emt 0:00:07]} 27. Bc7 {[%emt 0:00:16]} Rc8 {[%emt 0:00:06]} 28. Bd6 {[%emt 0:00:04]} Rd8 {[%emt 0:00:05]} 29. Bf3 {[%emt 0:00:04]} h5 {[%emt 0:00:29]} 30. c4 {[%emt 0:00:12]} Rd7 {[%emt 0:00:10]} 31. cxb5 {[%emt 0:00:04]} axb5 {[%emt 0:00:02]} 32. a4 {[%emt 0:00:02]} b4 {[%emt 0:00:22]} 33. Rac1 {[%emt 0:00:19]} Kg7 {[%emt 0:00:18]} 34. Bxc6 {[%emt 0:00:13]} Bxc6 {[%emt 0:00:04]} 35. Rxc6 {[%emt 0:00:06]} Kh6 {[%emt 0:00:19]} 36. Bf8+ {[%emt 0:00:04]} Kg5 {[%emt 0:01:04]} 37. Rxe6 {[%emt 0:00:05]} Rd3 {[%emt 0:00:05]} 38. Rd6 {[%emt 0:00:45]} Rxb3 {[%emt 0:00:07]} 39. e6 {[%emt 0:00:15]} Rb2 {[%emt 0:00:11]} 40. Rd5+ {[%emt 0:00:12]} Kh4 {[%emt 0:00:11]} 41. Be7+ {[%emt 0:00:04]} g5 {[%emt 0:12:02]} 42. Rd4+ {[%emt 0:00:08]} Kg3 {[%emt 0:00:09]} 43. Rf3# {[%emt 0:00:05]} 1-0

[Event "African Games-chT 2019"]
[Site "Casablanca"]
[Date "2019.08.24"]
[Round "4.34"]
[White "Koualet-Bebondi, Vianney Archeveq"]
[Black "Gole, Habtamu Ashenafi"]
[Result "1-0"]
[ECO "B20"]
[WhiteElo "1679"]
[BlackElo "2046"]
[Annotator "NA"]
[PlyCount "91"]
[EventDate "2019.08.24"]
[EventType "team-tourn"]
[EventCountry "MAR"]
[SourceTitle "playchess.com"]
[Source "ChessBase"]
[SourceQuality "1"]
[WhiteTeam "CAF"]
[BlackTeam "Ethiopia"]
[BlackTeamCountry "ETH"]
[TimeControl "900+10"]

1. e4 {[%emt 0:00:00]} c5 {[%emt 0:00:00]} 2. d3 {[%emt 0:00:00]} Nc6 {[%emt 0:00:00]} 3. c3 e6 4. Nf3 {[%emt 0:00:34]} h6 {[%emt 0:00:22]} 5. Be2 {[%emt 0:00:04]} d5 {[%emt 0:00:05]} 6. exd5 {[%emt 0:00:21]} exd5 {[%emt 0:00:04]} 7. O-O {[%emt 0:00:03]} Nf6 {[%emt 0:00:06]} 8. Bf4 {[%emt 0:00:18]} Bd6 {[%emt 0:00:09]} 9. Bxd6 {[%emt 0:00:35]} Qxd6 {[%emt 0:00:03]} 10. h3 {[%emt 0:00:03]} O-O {[%emt 0:00:02]} 11. Nh2 {[%emt 0:00:03]} d4 {[%emt 0:00:20]} 12. f4 {[%emt 0:00:24]} Nd5 {[%emt 0:00:08]} 13. Qd2 {[%emt 0:00:21]} Ne3 {[%emt 0:00:12]} 14. Rf2 {[%emt 0:00:23]} Re8 {[%emt 0:00:03]} 15. Na3 {[%emt 0:00:15]} a6 {[%emt 0:00:52]} 16. Nc2 {[%emt 0:00:29]} Qg6 {[%emt 0:00:20]} 17. Kh1 {[%emt 0:01:03]} Qg3 {[%emt 0:00:47]} 18. Bf3 {[%emt 0:00:28]} Bd7 {[%emt 0:00:46]} 19. cxd4 {[%emt 0:00:12]} cxd4 {[%emt 0:00:02]} 20. Re1 {[%emt 0:00:26]} Kh7 {[%emt 0:01:41]} 21. Nxd4 {[%emt 0:00:12]} Nxd4 {[%emt 0:02:08]} 22. Rxe3 {[%emt 0:00:05]} g6 {[%emt 0:01:51]} 23. Bxb7 {[%emt 0:00:25]} Rxe3 {[%emt 0:00:15]} 24. Bxa8 {[%emt 0:00:09]} Rxd3 {[%emt 0:00:12]} 25. Qe1 {[%emt 0:00:47]} Qh4 {[%emt 0:01:26]} 26. Be4 {[%emt 0:01:12]} Rd1 {[%emt 0:00:58]} 27. Qxd1 {[%emt 0:00:25]} Qxf2 {[%emt 0:00:02]} 28. Qf1 {[%emt 0:00:31]} Qxb2 {[%emt 0:00:19]} 29. Bd5 {[%emt 0:00:54]} Ne2 {[%emt 0:00:49]} 30. Qf2 {[%emt 0:01:30]} Bb5 {[%emt 0:00:37]} 31. Nf1 {[%emt 0:00:20]} Qc1 {[%emt 0:00:43]} 32. Kh2 {[%emt 0:00:14]} Nxf4 {[%emt 0:00:13]} 33. Ne3 {[%emt 0:00:34]} Qc7 {[%emt 0:00:27]} 34. g3 {[%emt 0:00:14]} Nxd5 {[%emt 0:00:33]} 35. Nxd5 Qb7 {[%emt 0:01:59]} 36. Qd2 {[%emt 0:00:48]} Bc4 {[%emt 0:00:29]} 37. Nc3 {[%emt 0:01:02]} Be6 {[%emt 0:00:12]} 38. a4 {[%emt 0:01:15]} Qb4 {[%emt 0:00:02]} 39. Qc1 {[%emt 0:01:10]} h5 {[%emt 0:00:19]} 40. Qa1 {[%emt 0:00:27]} Qd4 {[%emt 0:00:02]} 41. Qb2 {[%emt 0:00:17]} Qe5 {[%emt 0:00:17]} 42. h4 {[%emt 0:00:39]} Bd5 {[%emt 0:00:06]} 43. Qd2 {[%emt 0:00:17]} Bc6 {[%emt 0:00:13]} 44. Qc2 {[%emt 0:00:57]} Qe1 {[%emt 0:00:06]} 45. Ne4 {[%emt 0:01:27]} Bxe4 {[%emt 0:00:06]} 46. Qc7 1-0

[Event "African Games-chT 2019"]
[Site "Casablanca"]
[Date "2019.08.24"]
[Round "5.1"]
[White "Adly, Ahmed"]
[Black "Zaibi, Amir"]
[Result "1-0"]
[ECO "D02"]
[WhiteElo "2636"]
[BlackElo "2367"]
[Annotator "ChessBase"]
[PlyCount "75"]
[EventDate "2019.08.24"]
[EventType "team-tourn"]
[EventCountry "MAR"]
[SourceTitle "playchess.com"]
[Source "ChessBase"]
[SourceQuality "1"]
[WhiteTeam "Egypt"]
[BlackTeam "Tunisia"]
[WhiteTeamCountry "EGY"]
[BlackTeamCountry "TUN"]
[TimeControl "900+10"]

1. d4 {[%emt 0:00:00]} d5 {[%emt 0:00:00]} 2. Nf3 {[%emt 0:00:00]} Nf6 {[%emt 0:00:00]} 3. Bf4 {[%emt 0:00:06]} c5 {[%emt 0:00:00]} 4. e3 {[%emt 0:00:02]} Nc6 {[%emt 0:00:02]} 5. c3 {[%emt 0:00:04]} Qb6 {[%emt 0:00:14]} 6. Qc1 {[%emt 0:00:09]} Bf5 {[%emt 0:00:14]} 7. Nbd2 {[%emt 0:00:13]} Rc8 {[%emt 0:00:16]} 8. Be2 {[%emt 0:00:23]} e6 {[%emt 0:00:40]} 9. O-O {[%emt 0:00:08]} Be7 {[%emt 0:00:14]} 10. h3 {[%emt 0:00:57]} h6 {[%emt 0:00:11]} 11. a4 {[%emt 0:01:05]} a6 {[%emt 0:00:27]} 12. dxc5 {[%emt 0:00:19]} Bxc5 {[%emt 0:00:24]} 13. b4 {[%emt 0:00:04]} Be7 {[%emt 0:00:18]} 14. b5 {[%emt 0:00:39]} axb5 {[%emt 0:00:36]} 15. axb5 {[%emt 0:00:02]} Na5 {[%emt 0:00:04]} 16. Be5 {[%emt 0:00:20]} O-O {[%emt 0:00:32]} 17. Ra4 {[%emt 0:00:03]} Qd8 {[%emt 0:00:56]} 18. Nd4 {[%emt 0:01:23]} Bh7 {[%emt 0:00:35]} 19. Qa1 {[%emt 0:00:02]} b6 {[%emt 0:00:33]} 20. c4 {[%emt 0:00:06]} Bd6 {[%emt 0:01:16]} 21. N4f3 {[%emt 0:01:45]} dxc4 {[%emt 0:01:06]} 22. Nxc4 {[%emt 0:00:24]} Nxc4 {[%emt 0:00:06]} 23. Rxc4 {[%emt 0:00:11]} Bxe5 {[%emt 0:00:31]} 24. Nxe5 {[%emt 0:00:39]} Qd2 {[%emt 0:00:42]} 25. Qc1 {[%emt 0:00:13]} Qxc1 {[%emt 0:02:59]} 26. Rfxc1 {[%emt 0:00:02]} Rxc4 {[%emt 0:00:00]} 27. Rxc4 {[%emt 0:00:01]} Be4 {[%emt 0:00:03]} 28. f3 {[%emt 0:00:01]} Bd5 {[%emt 0:00:54]} 29. Rc7 {[%emt 0:00:16]} Ne8 {[%emt 0:00:30]} 30. Ra7 {[%emt 0:02:34]} Nd6 {[%emt 0:01:08]} 31. e4 {[%emt 0:00:06]} Bb7 {[%emt 0:01:54]} 32. Nd7 {[%emt 0:00:05]} Rc8 {[%emt 0:00:13]} 33. e5 {[%emt 0:01:06]} Rc7 {[%emt 0:00:03]} 34. Nxb6 {[%emt 0:00:11]} Nf5 {[%emt 0:00:06]} 35. Bd3 {[%emt 0:00:26]} g6 {[%emt 0:01:38]} 36. Nc4 {[%emt 0:00:53]} Rd7 {[%emt 0:00:16]} 37. Bxf5 {[%emt 0:00:04]} gxf5 {[%emt 0:00:05]} 38. Nd6 {[%emt 0:00:02]} 1-0

[Event "African Games-chT 2019"]
[Site "Casablanca"]
[Date "2019.08.24"]
[Round "5.3"]
[White "Wafa, Shrook"]
[Black "Marzouk, Amira"]
[Result "1-0"]
[ECO "B50"]
[WhiteElo "2183"]
[BlackElo "1698"]
[Annotator "NA"]
[PlyCount "49"]
[EventDate "2019.08.24"]
[EventType "team-tourn"]
[EventCountry "MAR"]
[SourceTitle "playchess.com"]
[Source "ChessBase"]
[SourceQuality "1"]
[WhiteTeam "Egypt"]
[BlackTeam "Tunisia"]
[WhiteTeamCountry "EGY"]
[BlackTeamCountry "TUN"]
[TimeControl "900+10"]

1. e4 {[%emt 0:00:00]} c5 {[%emt 0:00:00]} 2. Nf3 {[%emt 0:00:00]} d6 {[%emt 0:00:00]} 3. Nc3 {[%emt 0:00:00]} Nf6 {[%emt 0:00:00]} 4. Bb5+ {[%emt 0:00:16]} Bd7 {[%emt 0:00:08]} 5. Bxd7+ {[%emt 0:00:11]} Nbxd7 {[%emt 0:00:18]} 6. d4 {[%emt 0:00:16]} cxd4 {[%emt 0:00:12]} 7. Nxd4 {[%emt 0:00:03]} g6 {[%emt 0:00:13]} 8. O-O {[%emt 0:00:18]} Bg7 {[%emt 0:00:03]} 9. Re1 {[%emt 0:00:12]} O-O {[%emt 0:00:07]} 10. Be3 {[%emt 0:00:27]} a6 {[%emt 0:00:15]} 11. f3 {[%emt 0:00:10]} Rc8 {[%emt 0:00:24]} 12. Qd2 {[%emt 0:00:54]} Re8 {[%emt 0:00:33]} 13. Rac1 {[%emt 0:00:23]} b5 {[%emt 0:01:10]} 14. a4 {[%emt 0:01:32]} b4 {[%emt 0:00:26]} 15. Nd5 {[%emt 0:02:01]} Nxd5 {[%emt 0:00:21]} 16. exd5 {[%emt 0:00:04]} a5 {[%emt 0:00:57]} 17. Nc6 {[%emt 0:02:40]} Qc7 {[%emt 0:00:07]} 18. Bd4 {[%emt 0:00:11]} Bxd4+ {[%emt 0:00:47]} 19. Qxd4 {[%emt 0:00:06]} Nb8 {[%emt 0:00:02]} 20. Na7 {[%emt 0:01:19]} Qc5 {[%emt 0:00:47]} 21. c3 {[%emt 0:01:36]} Qxd4+ {[%emt 0:05:12]} 22. cxd4 {[%emt 0:00:03]} Kf8 {[%emt 0:00:17]} 23. Rxc8 {[%emt 0:00:07]} Rxc8 {[%emt 0:00:02]} 24. Nxc8 {[%emt 0:00:02]} Nd7 {[%emt 0:00:24]} 25. Rxe7 {[%emt 0:00:12]} 1-0

[Event "African Games-chT 2019"]
[Site "Casablanca"]
[Date "2019.08.24"]
[Round "5.4"]
[White "Miladi, Amen"]
[Black "Wafa, Shahenda"]
[Result "1/2-1/2"]
[ECO "B34"]
[WhiteElo "1811"]
[BlackElo "2139"]
[Annotator "NA"]
[PlyCount "173"]
[EventDate "2019.08.24"]
[EventType "team-tourn"]
[EventCountry "MAR"]
[SourceTitle "playchess.com"]
[Source "ChessBase"]
[SourceQuality "1"]
[WhiteTeam "Tunisia"]
[BlackTeam "Egypt"]
[WhiteTeamCountry "TUN"]
[BlackTeamCountry "EGY"]
[TimeControl "900+10"]

1. e4 {[%emt 0:00:00]} c5 {[%emt 0:00:00]} 2. Nf3 {[%emt 0:00:00]} Nc6 {[%emt 0:00:00]} 3. d4 {[%emt 0:00:00]} cxd4 {[%emt 0:00:00]} 4. Nxd4 {[%emt 0:00:00]} Nf6 {[%emt 0:00:00]} 5. Nc3 {[%emt 0:00:00]} e5 {[%emt 0:00:00]} 6. Ndb5 {[%emt 0:00:00]} d6 {[%emt 0:00:01]} 7. a4 {[%emt 0:00:08]} a6 {[%emt 0:00:32]} 8. Na3 {[%emt 0:00:01]} Bg4 {[%emt 0:00:04]} 9. Be2 {[%emt 0:00:48]} Bxe2 {[%emt 0:00:03]} 10. Qxe2 {[%emt 0:00:03]} d5 {[%emt 0:00:06]} 11. Bg5 {[%emt 0:00:40]} d4 {[%emt 0:00:30]} 12. Bxf6 {[%emt 0:00:22]} gxf6 {[%emt 0:00:44]} 13. Nd5 {[%emt 0:00:14]} Nb4 {[%emt 0:00:31]} 14. Qf3 {[%emt 0:02:02]} Nxd5 {[%emt 0:03:47]} 15. exd5 {[%emt 0:00:02]} Bg7 {[%emt 0:01:30]} 16. O-O-O {[%emt 0:00:32]} O-O {[%emt 0:01:45]} 17. Qb3 {[%emt 0:01:27]} Qd7 {[%emt 0:01:14]} 18. a5 {[%emt 0:00:31]} Rfd8 {[%emt 0:00:39]} 19. c4 {[%emt 0:00:23]} dxc3 {[%emt 0:01:14]} 20. bxc3 {[%emt 0:00:04]} Rac8 {[%emt 0:00:22]} 21. Kb2 {[%emt 0:00:21]} Rc5 {[%emt 0:00:18]} 22. c4 {[%emt 0:01:09]} Rxa5 {[%emt 0:00:27]} 23. Qb6 {[%emt 0:00:37]} Ra4 {[%emt 0:00:17]} 24. c5 {[%emt 0:00:46]} f5 {[%emt 0:01:28]} 25. Kb3 {[%emt 0:00:48]} Rd4 {[%emt 0:00:34]} 26. Rxd4 {[%emt 0:01:06]} exd4 {[%emt 0:00:01]} 27. d6 {[%emt 0:00:26]} Rc8 {[%emt 0:00:35]} 28. Re1 {[%emt 0:01:22]} Bf6 {[%emt 0:00:42]} 29. Nc4 {[%emt 0:00:30]} Qb5+ {[%emt 0:01:03]} 30. Qxb5 {[%emt 0:00:10]} axb5 31. Na5 {[%emt 0:00:35]} Rxc5 {[%emt 0:00:25]} 32. Nxb7 {[%emt 0:00:11]} Rd5 {[%emt 0:00:05]} 33. Kb4 {[%emt 0:02:30]} d3 {[%emt 0:00:25]} 34. Rd1 {[%emt 0:00:32]} Be5 {[%emt 0:00:23]} 35. d7 {[%emt 0:00:33]} Rxd7 {[%emt 0:00:13]} 36. Nc5 {[%emt 0:00:01]} Bd6 {[%emt 0:00:37]} 37. Kxb5 {[%emt 0:00:02]} Bxc5 {[%emt 0:00:10]} 38. Kxc5 {[%emt 0:00:02]} Kg7 {[%emt 0:00:07]} 39. Kc4 {[%emt 0:00:05]} Kf6 {[%emt 0:00:13]} 40. Rxd3 {[%emt 0:00:02]} Rc7+ {[%emt 0:00:01]} 41. Kd4 {[%emt 0:00:15]} Rc2 {[%emt 0:00:04]} 42. Ke3 {[%emt 0:00:16]} Ke5 {[%emt 0:00:07]} 43. Rd7 {[%emt 0:00:10]} Rc3+ {[%emt 0:00:09]} 44. Kd2 {[%emt 0:00:09]} Rc6 {[%emt 0:00:06]} 45. Rxf7 {[%emt 0:00:06]} Rh6 {[%emt 0:00:02]} 46. h3 {[%emt 0:00:09]} f4 {[%emt 0:00:36]} 47. Ke2 {[%emt 0:00:09]} Ke4 {[%emt 0:00:08]} 48. Re7+ {[%emt 0:00:09]} Kf5 {[%emt 0:00:06]} 49. Kf3 {[%emt 0:00:04]} Kg5 {[%emt 0:00:08]} 50. Rf7 {[%emt 0:00:33]} Ra6 {[%emt 0:00:28]} 51. Rxh7 {[%emt 0:00:11]} Ra3+ {[%emt 0:00:03]} 52. Ke4 {[%emt 0:00:26]} Ra4+ {[%emt 0:00:01]} 53. Kd3 {[%emt 0:00:21]} Ra3+ {[%emt 0:00:01]} 54. Kc4 {[%emt 0:00:04]} Ra2 {[%emt 0:00:10]} 55. Rg7+ {[%emt 0:00:10]} Kf6 {[%emt 0:00:04]} 56. Rg4 {[%emt 0:00:44]} Rxf2 {[%emt 0:00:02]} 57. Kd5 {[%emt 0:00:29]} Kf5 {[%emt 0:00:12]} 58. Rg8 {[%emt 0:00:20]} Rd2+ {[%emt 0:00:02]} 59. Kc4 {[%emt 0:00:07]} Ke4 {[%emt 0:00:15]} 60. Re8+ {[%emt 0:00:12]} Kf5 {[%emt 0:00:01]} 61. Rf8+ {[%emt 0:00:11]} Ke4 {[%emt 0:00:05]} 62. Re8+ {[%emt 0:00:22]} Kf5 {[%emt 0:00:02]} 63. Rg8 {[%emt 0:00:07]} Ke4 {[%emt 0:00:05]} 64. Kc3 {[%emt 0:00:07]} Rd3+ {[%emt 0:00:03]} 65. Kc2 {[%emt 0:00:02]} Rd7 {[%emt 0:00:10]} 66. Re8+ {[%emt 0:00:23]} Kf5 {[%emt 0:00:03]} 67. Re2 {[%emt 0:00:07]} Rf7 {[%emt 0:00:48]} 68. Rf2 {[%emt 0:00:23]} Ke4 {[%emt 0:00:06]} 69. Kd2 {[%emt 0:00:04]} Rd7+ {[%emt 0:00:27]} 70. Ke2 {[%emt 0:00:06]} Ra7 {[%emt 0:00:02]} 71. h4 {[%emt 0:00:33]} Rh7 {[%emt 0:00:06]} 72. Rf3 {[%emt 0:00:13]} Rxh4 {[%emt 0:00:03]} 73. Kf2 {[%emt 0:00:01]} Rh7 {[%emt 0:00:07]} 74. Kf1 {[%emt 0:00:02]} Ra7 {[%emt 0:00:03]} 75. Kf2 {[%emt 0:00:01]} Ra1 {[%emt 0:00:04]} 76. Ke2 {[%emt 0:00:01]} Ra2+ {[%emt 0:00:13]} 77. Kf1 {[%emt 0:00:01]} Rd2 {[%emt 0:00:05]} 78. Kg1 {[%emt 0:00:04]} Rd1+ {[%emt 0:00:21]} 79. Kf2 {[%emt 0:00:01]} Rc1 {[%emt 0:00:17]} 80. Ke2 {[%emt 0:00:03]} Rc2+ {[%emt 0:00:23]} 81. Kf1 {[%emt 0:00:02]} Rd2 {[%emt 0:00:04]} 82. Kg1 {[%emt 0:00:02]} Re2 {[%emt 0:00:03]} 83. Kf1 {[%emt 0:00:03]} Re3 {[%emt 0:00:08]} 84. Rxe3+ {[%emt 0:00:28]} fxe3 {[%emt 0:00:31]} 85. Ke2 {[%emt 0:00:02]} Kf4 {[%emt 0:00:02]} 86. g4 {[%emt 0:00:05]} Kxg4 {[%emt 0:00:01]} 87. Kxe3 1/2-1/2

[Event "African Games-chT 2019"]
[Site "Casablanca"]
[Date "2019.08.24"]
[Round "5.5"]
[White "Oatlhotse, Providence"]
[Black "Bellahcene, Bilel"]
[Result "1-0"]
[ECO "A40"]
[WhiteElo "2252"]
[BlackElo "2550"]
[Annotator "ChessBase"]
[PlyCount "173"]
[EventDate "2019.08.24"]
[EventType "team-tourn"]
[EventCountry "MAR"]
[SourceTitle "playchess.com"]
[Source "ChessBase"]
[SourceQuality "1"]
[WhiteTeam "Botswana"]
[BlackTeam "Algeria"]
[WhiteTeamCountry "BOT"]
[BlackTeamCountry "ALG"]
[TimeControl "900+10"]

1. d4 {[%emt 0:00:00]} Na6 {[%emt 0:00:00]} 2. e4 {[%emt 0:00:00]} c6 {[%emt 0:00:00]} 3. c4 {[%emt 0:00:04]} g6 {[%emt 0:00:00]} 4. Be2 {[%emt 0:00:08]} Bg7 {[%emt 0:00:01]} 5. Nf3 {[%emt 0:00:03]} d6 {[%emt 0:00:08]} 6. Nc3 {[%emt 0:00:07]} Nf6 {[%emt 0:00:01]} 7. Rb1 {[%emt 0:00:23]} O-O {[%emt 0:00:04]} 8. O-O {[%emt 0:00:03]} e5 {[%emt 0:00:12]} 9. d5 {[%emt 0:00:14]} Nc5 {[%emt 0:00:02]} 10. Nd2 {[%emt 0:00:05]} a5 {[%emt 0:00:01]} 11. b3 {[%emt 0:00:17]} Rb8 {[%emt 0:00:12]} 12. Ba3 {[%emt 0:00:12]} Na6 {[%emt 0:00:33]} 13. Re1 {[%emt 0:00:33]} Nb4 {[%emt 0:00:09]} 14. Nf1 {[%emt 0:00:33]} Bd7 {[%emt 0:00:15]} 15. Ne3 {[%emt 0:00:35]} b5 {[%emt 0:00:31]} 16. Bb2 {[%emt 0:04:51]} bxc4 {[%emt 0:01:04]} 17. Bxc4 {[%emt 0:00:25]} cxd5 {[%emt 0:00:14]} 18. Nexd5 {[%emt 0:00:49]} Nfxd5 {[%emt 0:00:04]} 19. Bxd5 {[%emt 0:00:14]} Kh8 {[%emt 0:00:10]} 20. Bc4 {[%emt 0:00:34]} Be6 {[%emt 0:00:09]} 21. Qe2 {[%emt 0:00:50]} Qc8 {[%emt 0:00:15]} 22. Bxe6 {[%emt 0:00:18]} fxe6 {[%emt 0:00:15]} 23. Red1 {[%emt 0:00:14]} Qd7 {[%emt 0:00:27]} 24. Ba3 {[%emt 0:00:45]} Rfc8 {[%emt 0:00:08]} 25. Bxb4 {[%emt 0:00:15]} axb4 {[%emt 0:00:04]} 26. Na4 {[%emt 0:00:01]} Bh6 {[%emt 0:00:33]} 27. Rb2 {[%emt 0:00:32]} Qc6 {[%emt 0:00:18]} 28. Qd3 {[%emt 0:00:16]} d5 {[%emt 0:00:03]} 29. Qh3 {[%emt 0:01:24]} Bg7 {[%emt 0:00:10]} 30. Rbd2 {[%emt 0:00:33]} d4 {[%emt 0:00:08]} 31. Qg4 {[%emt 0:00:09]} Rf8 {[%emt 0:00:05]} 32. g3 {[%emt 0:00:01]} Ra8 {[%emt 0:00:30]} 33. h4 {[%emt 0:00:05]} Ra7 {[%emt 0:00:06]} 34. Qe2 {[%emt 0:01:00]} Rc8 {[%emt 0:00:08]} 35. Qg4 {[%emt 0:00:23]} Qe8 {[%emt 0:00:09]} 36. Rd3 {[%emt 0:00:37]} h5 {[%emt 0:00:07]} 37. Qg5 {[%emt 0:00:23]} Rac7 {[%emt 0:00:44]} 38. Nb2 {[%emt 0:00:13]} Rc2 {[%emt 0:00:05]} 39. Nc4 {[%emt 0:00:04]} Qf7 {[%emt 0:00:37]} 40. R1d2 {[%emt 0:00:29]} R2xc4 {[%emt 0:02:12]} 41. bxc4 {[%emt 0:00:06]} Rxc4 {[%emt 0:00:11]} 42. Kg2 {[%emt 0:00:36]} Kh7 {[%emt 0:00:01]} 43. Rf3 {[%emt 0:01:08]} Qb7 {[%emt 0:00:01]} 44. Re2 {[%emt 0:00:11]} Rc3 {[%emt 0:00:06]} 45. Qd2 {[%emt 0:01:20]} Qd7 {[%emt 0:00:45]} 46. Re1 {[%emt 0:00:23]} Qc7 {[%emt 0:00:46]} 47. Qb2 {[%emt 0:00:09]} Qc4 {[%emt 0:00:07]} 48. Rb1 {[%emt 0:00:06]} Rxf3 {[%emt 0:00:17]} 49. Kxf3 Qd3+ {[%emt 0:00:01]} 50. Kg2 {[%emt 0:00:03]} Qxe4+ {[%emt 0:00:01]} 51. f3 {[%emt 0:00:10]} Qd5 {[%emt 0:00:13]} 52. Qxb4 {[%emt 0:00:16]} e4 {[%emt 0:00:03]} 53. fxe4 {[%emt 0:00:25]} Qxe4+ {[%emt 0:00:01]} 54. Kh3 {[%emt 0:00:03]} Qf3 {[%emt 0:01:13]} 55. Qb7 {[%emt 0:00:11]} Qe2 {[%emt 0:00:15]} 56. Rb2 {[%emt 0:00:15]} Qd1 {[%emt 0:01:21]} 57. Kh2 {[%emt 0:00:12]} d3 {[%emt 0:00:05]} 58. Qd7 {[%emt 0:00:10]} Qa1 {[%emt 0:01:08]} 59. Rd2 {[%emt 0:00:10]} e5 {[%emt 0:01:45]} 60. Qxd3 {[%emt 0:00:01]} Qc1 {[%emt 0:00:01]} 61. Rc2 {[%emt 0:00:07]} Qe1 {[%emt 0:00:07]} 62. Qe2 {[%emt 0:00:09]} Qa5 {[%emt 0:00:11]} 63. Qd2 {[%emt 0:00:10]} Qa7 {[%emt 0:00:25]} 64. Qf2 {[%emt 0:00:12]} Qd7 {[%emt 0:00:05]} 65. Rd2 {[%emt 0:00:06]} Qe6 {[%emt 0:00:06]} 66. Re2 {[%emt 0:00:10]} Qd7 {[%emt 0:00:12]} 67. Qe3 {[%emt 0:00:05]} Qa4 {[%emt 0:00:16]} 68. Qe4 {[%emt 0:00:04]} Qa3 {[%emt 0:00:05]} 69. Qb7 {[%emt 0:00:07]} Qd3 {[%emt 0:00:30]} 70. Qe4 {[%emt 0:00:11]} Qa3 {[%emt 0:00:01]} 71. Kg2 {[%emt 0:00:04]} Qa7 {[%emt 0:00:05]} 72. a4 {[%emt 0:00:02]} Qc5 {[%emt 0:00:02]} 73. Kh2 {[%emt 0:00:08]} Qa3 {[%emt 0:00:03]} 74. Qc4 {[%emt 0:00:10]} Qa1 {[%emt 0:00:06]} 75. Ra2 {[%emt 0:00:13]} Qb1 {[%emt 0:00:28]} 76. a5 {[%emt 0:00:10]} e4 {[%emt 0:00:00]} 77. a6 {[%emt 0:00:07]} Bd4 {[%emt 0:00:07]} 78. Rg2 {[%emt 0:00:25]} Qa1 {[%emt 0:00:24]} 79. Qf7+ {[%emt 0:00:03]} Kh8 {[%emt 0:01:02]} 80. Qe8+ {[%emt 0:00:03]} Kh7 {[%emt 0:00:05]} 81. Qxe4 {[%emt 0:00:03]} Kg7 {[%emt 0:00:15]} 82. Qe7+ {[%emt 0:00:15]} Kh6 {[%emt 0:00:02]} 83. Qf8+ {[%emt 0:00:29]} Kh7 {[%emt 0:00:04]} 84. Qf7+ {[%emt 0:00:08]} Kh6 {[%emt 0:00:03]} 85. Qb7 {[%emt 0:00:27]} Be3 {[%emt 0:00:27]} 86. Qb2 {[%emt 0:00:14]} Bg1+ {[%emt 0:00:19]} 87. Kh1 {[%emt 0:00:13]} 1-0

[Event "African Games-chT 2019"]
[Site "Casablanca"]
[Date "2019.08.24"]
[Round "5.6"]
[White "Arab, Adlane"]
[Black "Khetho, Phemelo"]
[Result "1-0"]
[ECO "A92"]
[WhiteElo "2485"]
[BlackElo "2178"]
[Annotator "ChessBase"]
[PlyCount "65"]
[EventDate "2019.08.24"]
[EventType "team-tourn"]
[EventCountry "MAR"]
[SourceTitle "playchess.com"]
[Source "ChessBase"]
[SourceQuality "1"]
[WhiteTeam "Algeria"]
[BlackTeam "Botswana"]
[WhiteTeamCountry "ALG"]
[BlackTeamCountry "BOT"]
[TimeControl "900+10"]

1. d4 {[%emt 0:00:00]} f5 {[%emt 0:00:00]} 2. c4 {[%emt 0:00:00]} Nf6 {[%emt 0:00:00]} 3. g3 {[%emt 0:00:00]} e6 {[%emt 0:00:00]} 4. Bg2 {[%emt 0:00:00]} Be7 {[%emt 0:00:03]} 5. Nf3 {[%emt 0:00:03]} O-O {[%emt 0:00:06]} 6. O-O {[%emt 0:00:03]} Ne4 {[%emt 0:00:04]} 7. d5 {[%emt 0:00:28]} Bf6 {[%emt 0:00:34]} 8. Qc2 {[%emt 0:00:03]} e5 {[%emt 0:00:14]} 9. Nbd2 {[%emt 0:00:35]} Nxd2 {[%emt 0:00:06]} 10. Bxd2 {[%emt 0:00:03]} d6 {[%emt 0:00:03]} 11. Rac1 {[%emt 0:00:31]} c5 {[%emt 0:01:35]} 12. dxc6 {[%emt 0:00:20]} bxc6 {[%emt 0:00:27]} 13. Rfd1 {[%emt 0:00:05]} e4 {[%emt 0:00:44]} 14. Ne1 {[%emt 0:00:04]} Be5 {[%emt 0:01:43]} 15. Bc3 {[%emt 0:00:08]} Nd7 {[%emt 0:00:43]} 16. Qd2 {[%emt 0:00:42]} Qf6 {[%emt 0:00:34]} 17. f4 {[%emt 0:00:31]} exf3 {[%emt 0:02:54]} 18. Nxf3 {[%emt 0:00:02]} Rb8 {[%emt 0:00:42]} 19. Nxe5 {[%emt 0:00:24]} dxe5 {[%emt 0:00:02]} 20. Qd6 {[%emt 0:00:05]} Rb6 {[%emt 0:01:25]} 21. b3 {[%emt 0:00:13]} c5 {[%emt 0:01:11]} 22. Qxf6 {[%emt 0:00:56]} gxf6 {[%emt 0:00:32]} 23. Rd2 {[%emt 0:00:10]} Kf7 {[%emt 0:00:31]} 24. Rcd1 {[%emt 0:01:07]} Ke7 {[%emt 0:00:40]} 25. Ba5 {[%emt 0:00:29]} Ra6 {[%emt 0:00:18]} 26. Bc7 {[%emt 0:00:02]} Rg8 {[%emt 0:01:14]} 27. Bh3 {[%emt 0:00:20]} Rg5 {[%emt 0:00:58]} 28. e4 {[%emt 0:00:09]} Rc6 {[%emt 0:01:33]} 29. Bd6+ {[%emt 0:00:04]} Ke8 {[%emt 0:00:10]} 30. exf5 {[%emt 0:00:32]} Rg7 {[%emt 0:00:31]} 31. Bg2 {[%emt 0:00:11]} Rb6 {[%emt 0:00:02]} 32. Bxc5 {[%emt 0:00:17]} Ra6 {[%emt 0:00:25]} 33. Be3 {[%emt 0:00:15]} 1-0